lending/lending_fUSD_20240509
["ID","MTS","AMOUNT","RATE_DAILY","PERIOD"]
[326726442,1715284290877,-500.0,0.00041917,33]
[326726443,1715284290886,-500.0,0.00041917,33]
[326726444,1715284290897,-500.0,0.00041917,33]
[326726445,1715284290907,-500.0,0.00041917,33]
[326726446,1715284290916,-500.0,0.00041917,33]
[326726447,1715284290930,-500.0,0.00041917,33]
[326726448,1715284290939,-500.0,0.00041917,33]
[326726449,1715284290949,-640.39151555,0.00041917,33]
[326726450,1715284290960,-500.0,0.00041917,33]
[326726451,1715284290971,-500.0,0.00041917,33]
[326726452,1715284290980,-781.17,0.00041917,33]
[326726453,1715284290990,-500.0,0.00041917,33]
[326726454,1715284291003,-512.59396653,0.00041917,33]
[326726455,1715284291014,-500.0,0.00041917,33]
[326726456,1715284291025,-500.19,0.00041917,33]
[326726457,1715284291035,-500.0,0.00041917,33]
[326726458,1715284291045,-500.0,0.00041917,33]
[326726459,1715284291054,-519.31940139,0.00041917,33]
[326726460,1715284291063,-500.0,0.00041917,33]
[326726461,1715284291072,-500.0,0.00041917,33]
[326726462,1715284291082,-500.0,0.00041917,33]
[326726463,1715284291093,-500.0,0.00041917,33]
[326726464,1715284291104,-758.88,0.00041917,33]
[326726465,1715284291113,-500.0,0.00041917,33]
[326726466,1715284291122,-750.7,0.00041917,33]
[326726467,1715284291133,-500.0,0.00041917,33]
[326726468,1715284291144,-500.0,0.00041917,33]
[326726469,1715284291154,-500.0,0.00041917,33]
[326726470,1715284291163,-587.25,0.00041917,33]
[326726471,1715284291172,-573.74,0.00041917,33]
[326726472,1715284291182,-500.0,0.00041917,33]
[326726473,1715284291192,-571.6,0.00041917,33]
[326726474,1715284291203,-500.0,0.00041917,33]
[326726475,1715284291212,-500.0,0.00041917,33]
[326726476,1715284291223,-500.0,0.00041917,33]
[326726477,1715284291233,-500.0,0.00041917,33]
[326726478,1715284291243,-500.0,0.00041917,33]
[326726479,1715284291254,-500.0,0.00041917,33]
[326726480,1715284291264,-500.0,0.00041917,33]
[326726481,1715284291273,-500.0,0.00041917,33]
[326726482,1715284291283,-500.0,0.00041917,33]
[326726483,1715284291292,-510.3,0.00041917,33]
[326726484,1715284291302,-500.0,0.00041917,33]
[326726485,1715284291313,-500.0,0.00041917,33]
[326726486,1715284291323,-500.0,0.00041917,33]
[326726487,1715284291332,-500.0,0.00041917,33]
[326726488,1715284291342,-500.0,0.00041917,33]
[326726489,1715284291350,-500.0,0.00041917,33]
[326726490,1715284291360,-576.38,0.00041917,33]
[326726491,1715284291369,-566.0,0.00041917,33]
[326726492,1715284291378,-548.87203928,0.00041917,33]
[326726493,1715284291387,-500.0,0.00041917,33]
[326726494,1715284291397,-500.0,0.00041917,33]
[326726495,1715284291406,-570.74,0.00041917,33]
[326726496,1715284291415,-562.66,0.00041917,33]
[326726497,1715284291425,-500.0,0.00041917,33]
[326726498,1715284291436,-500.0,0.00041917,33]
[326726499,1715284291445,-500.0,0.00041917,33]
[326726500,1715284291455,-1193.11,0.00041917,33]
[326726501,1715284291466,-500.0,0.00041917,33]
[326726502,1715284291475,-500.0,0.00041917,33]
[326726503,1715284291485,-500.0,0.00041917,33]
[326726504,1715284291494,-200.0,0.00041917,33]
[326726505,1715284291505,-500.0,0.00041917,33]
[326726506,1715284291514,-500.0,0.00041917,33]
[326726507,1715284291524,-500.0,0.00041917,33]
[326726508,1715284291534,-500.0,0.00041917,33]
[326726509,1715284291542,-500.0,0.00041917,33]
[326726510,1715284291551,-827.66,0.00041917,33]
[326726511,1715284291561,-506.1977703,0.00041917,33]
[326726512,1715284291570,-1233.59,0.00041917,33]
[326726513,1715284291579,-429.86011839,0.00041917,33]
[326726514,1715284291588,-500.0,0.00041917,33]
[326726515,1715284291597,-566.8731959,0.00041917,33]
[326726516,1715284291607,-500.0,0.00041917,33]
[326726517,1715284291617,-500.0,0.00041917,33]
[326726518,1715284291626,-500.0,0.00041917,33]
[326726519,1715284291637,-500.0,0.00041917,33]
[326726520,1715284291648,-500.0,0.00041917,33]
[326726521,1715284291658,-396.90282717,0.00041917,33]
[326726522,1715284291667,-500.0,0.00041917,33]
[326726523,1715284291677,-500.0,0.00041917,33]
[326726524,1715284291686,-500.0,0.00041917,33]
[326726525,1715284291695,-509.26471143,0.00041917,33]
[326726526,1715284291705,-500.0,0.00041917,33]
[326726527,1715284291714,-500.0,0.00041917,33]
[326726528,1715284291723,-500.0,0.00041917,33]
[326726529,1715284291733,-500.0,0.00041917,33]
[326726530,1715284291743,-645.24,0.00041917,33]
[326726531,1715284291752,-500.0,0.00041917,33]
[326726532,1715284291763,-500.0,0.00041917,33]
[326726533,1715284291772,-500.0,0.00041917,33]
[326726534,1715284291782,-502.83579094,0.00041917,33]
[326726535,1715284291792,-500.0,0.00041917,33]
[326726536,1715284291801,-804.65,0.00041917,33]
[326726537,1715284291810,-500.0,0.00041917,33]
[326726538,1715284291820,-500.0,0.00041917,33]
[326726539,1715284291831,-500.0,0.00041917,33]
[326726540,1715284291841,-500.0,0.00041917,33]
[326726541,1715284291851,-500.0,0.00041917,33]
[326726542,1715284291861,-500.0,0.00041917,33]
[326726543,1715284291870,-500.0,0.00041917,30]
[326726544,1715284291879,-500.0,0.00041917,33]
[326726545,1715284291890,-500.0,0.00041917,33]
[326726546,1715284291899,-500.0,0.00041917,33]
[326726547,1715284291908,-500.0,0.00041917,33]
[326726548,1715284291918,-500.0,0.00041917,33]
[326726549,1715284291930,-500.0,0.00041917,33]
[326726550,1715284291939,-500.0,0.00041917,33]
[326726551,1715284291948,-500.0,0.00041917,33]
[326726552,1715284291958,-500.0,0.00041917,33]
[326726553,1715284291969,-583.32,0.00041917,33]
[326726554,1715284291977,-500.0,0.00041917,33]
[326726555,1715284291986,-737.89,0.00041917,33]
[326726556,1715284291995,-500.0,0.00041917,33]
[326726557,1715284292007,-500.0,0.00041917,33]
[326726558,1715284292018,-500.0,0.00041917,33]
[326726559,1715284292027,-500.0,0.00041917,33]
[326726560,1715284292037,-500.0,0.00041917,33]
[326726561,1715284292046,-775.36325759,0.00041917,30]
[326726562,1715284292057,-500.0,0.00041917,33]
[326726563,1715284292068,-500.0,0.00041917,33]
[326726564,1715284292078,-500.0,0.00041917,33]
[326726565,1715284292088,-500.0,0.00041917,33]
[326726566,1715284292097,-500.0,0.00041917,33]
[326726567,1715284292106,-500.0,0.00041917,33]
[326726568,1715284292115,-500.0,0.00041917,33]
[326726569,1715284292124,-500.0,0.00041917,33]
[326726570,1715284292134,-768.17,0.00041917,33]
[326726571,1715284292145,-500.0,0.00041917,33]
[326726572,1715284292154,-536.35,0.00041917,33]
[326726573,1715284292164,-565.61,0.00041917,33]
[326726574,1715284292173,-500.0,0.00041917,33]
[326726575,1715284292182,-500.0,0.00041917,33]
[326726576,1715284292191,-636.6,0.00041917,33]
[326726577,1715284292199,-500.0,0.00041917,33]
[326726578,1715284292208,-813.38,0.00041917,33]
[326726579,1715284292217,-543.38990627,0.00041917,33]
[326726580,1715284292226,-503.06794846,0.00041917,33]
[326726581,1715284292235,-500.0,0.00041917,33]
[326726582,1715284292243,-500.0,0.00041917,33]
[326726583,1715284292252,-553.1,0.00041917,33]
[326726584,1715284292261,-502.39886392,0.00041917,33]
[326726585,1715284292270,-955.55,0.00041917,33]
[326726586,1715284292279,-500.0,0.00041917,33]
[326726587,1715284292287,-500.0,0.00041917,33]
[326726588,1715284292296,-500.0,0.00041917,33]
[326726589,1715284292305,-521.1532436,0.00041917,33]
[326726590,1715284292315,-1189.59,0.00041917,33]
[326726591,1715284292323,-550.55,0.00041917,33]
[326726592,1715284292333,-273.8498215,0.00041917,33]
[326726593,1715284292342,-219.86538558,0.00041917,33]
[326726594,1715284292351,-231.79479973,0.00041917,33]
[326726595,1715284292360,-500.0,0.00041917,33]
[326726596,1715284292369,-500.0,0.00041917,33]
[326726597,1715284292377,-500.0,0.00041917,33]
[326726598,1715284292386,-500.0,0.00041917,33]
[326726599,1715284292395,-1010.32,0.00041917,33]
[326726600,1715284292406,-1044.62,0.00041917,33]
[326726601,1715284292415,-500.0,0.00041917,33]
[326726602,1715284292423,-1054.43,0.00041917,33]
[326726603,1715284292432,-500.0,0.00041917,33]
[326726604,1715284292441,-500.0,0.00041917,33]
[326726605,1715284292450,-502.58255957,0.00041917,33]
[326726606,1715284292459,-500.0,0.00041917,33]
[326726607,1715284292468,-500.0,0.00041917,33]
[326726608,1715284292476,-510.92,0.00041917,33]
[326726609,1715284292485,-510.82075699,0.00041917,33]
[326726610,1715284292495,-197.37606329,0.00041917,33]
[326726611,1715284292504,-500.0,0.00041917,33]
[326726612,1715284292513,-502.58341612,0.00041917,33]
[326726613,1715284292522,-1160.86,0.00041917,33]
[326726614,1715284292531,-500.0,0.00041917,33]
[326726615,1715284292540,-500.0,0.00041917,33]
[326726616,1715284292550,-571.34504047,0.00041917,2]
[326726617,1715284292558,-616.61278141,0.00041917,33]
[326726618,1715284292568,-509.39,0.00041917,33]
[326726619,1715284292579,-500.0,0.00041917,33]
[326726620,1715284292589,-500.0,0.00041917,33]
[326726621,1715284292598,-519.47025351,0.00041917,33]
[326726622,1715284292607,-567.32593061,0.00041917,2]
[326726623,1715284292617,-500.0,0.00041917,33]
[326726624,1715284292627,-1156.79,0.00041917,33]
[326726625,1715284292637,-1436.17,0.00041917,33]
[326726626,1715284292646,-500.0,0.00041917,33]
[326726627,1715284292656,-500.0,0.00041917,33]
[326726628,1715284292665,-500.0,0.00041917,33]
[326726629,1715284292675,-1718.75,0.00041917,2]
[326726630,1715284292686,-1341.58,0.00041917,33]
[326726631,1715284292695,-500.0,0.00041917,33]
[326726632,1715284292704,-500.0,0.00041917,33]
[326726633,1715284292713,-151.0,0.00041917,14]
[326726634,1715284292722,-500.0,0.00041917,33]
[326726635,1715284292732,-457.22063875,0.00041917,33]
[326726636,1715284292742,-500.0,0.00041917,33]
[326726637,1715284292750,-500.0,0.00041917,33]
[326726638,1715284292761,-151.0,0.00041917,14]
[326726639,1715284292772,-500.0,0.00041917,33]
[326726640,1715284292782,-625.17399914,0.00041917,33]
[326726641,1715284292794,-505.56,0.00041917,33]
[326726642,1715284292803,-1484.74,0.00041917,33]
[326726643,1715284292957,-682.08,0.00041917,33]
[326726644,1715284292969,-176.55705335,0.00041917,33]
[326726645,1715284292978,-500.0,0.00041917,33]
[326726646,1715284292987,-1591.69,0.00041917,33]
[326726647,1715284292998,-1027.83,0.00041917,33]
[326726648,1715284293008,-500.0,0.00041917,33]
[326726649,1715284293018,-500.0,0.00041917,33]
[326726650,1715284293028,-500.0,0.00041917,33]
[326726651,1715284293037,-475.76280239,0.00041917,33]
[326726652,1715284293046,-1504.46,0.00041917,33]
[326726653,1715284293055,-500.0,0.00041917,33]
[326726654,1715284293065,-505.9,0.00041917,33]
[326726655,1715284293074,-500.0,0.00041917,33]
[326726656,1715284293083,-500.0,0.00041917,33]
[326726657,1715284293092,-1137.35,0.00041917,33]
[326726658,1715284293100,-351.04862673,0.00041917,33]
[326726659,1715284293109,-500.0,0.00041917,33]
[326726660,1715284293118,-500.0,0.00041917,33]
[326726661,1715284293129,-500.0,0.00041917,33]
[326726662,1715284293138,-500.0,0.00041917,33]
[326726663,1715284293148,-500.0,0.00041917,33]
[326726664,1715284293157,-655.89,0.00041917,33]
[326726665,1715284293166,-500.0,0.00041917,33]
[326726666,1715284293176,-500.0,0.00041917,33]
[326726667,1715284293187,-713.18,0.00041917,33]
[326726668,1715284293198,-500.0,0.00041917,33]
[326726669,1715284293208,-500.0,0.00041917,33]
[326726670,1715284293217,-1364.43,0.00041917,33]
[326726671,1715284293227,-785.55,0.00041917,33]
[326726672,1715284293237,-353.51112531,0.00041917,33]
[326726673,1715284293246,-951.2,0.00041917,33]
[326726674,1715284293256,-1046.03,0.00041917,33]
[326726675,1715284293265,-1367.07,0.00041917,33]
[326726676,1715284293274,-500.0,0.00041917,33]
[326726677,1715284293285,-539.58,0.00041917,33]
[326726678,1715284293295,-500.0,0.00041917,33]
[326726679,1715284293306,-500.0,0.00041917,33]
[326726680,1715284293315,-2348.24,0.00041917,33]
[326726681,1715284293324,-512.29293532,0.00041917,33]
[326726682,1715284293335,-500.0,0.00041917,33]
[326726683,1715284293345,-500.0,0.00041917,33]
[326726684,1715284293355,-500.0,0.00041917,33]
[326726685,1715284293365,-874.78,0.00041917,33]
[326726686,1715284293375,-500.0,0.00041917,33]
[326726687,1715284293387,-500.0,0.00041917,33]
[326726688,1715284293398,-500.0,0.00041917,33]
[326726689,1715284293408,-500.0,0.00041917,33]
[326726690,1715284293418,-2074.59,0.00041917,33]
[326726691,1715284293429,-500.0,0.00041917,33]
[326726692,1715284293438,-600.1691702,0.00041917,33]
[326726693,1715284293448,-500.0,0.00041917,33]
[326726694,1715284293458,-1325.71,0.00041917,33]
[326726695,1715284293471,-505.75,0.00041917,33]
[326726696,1715284293480,-2743.04,0.00041917,33]
[326726697,1715284293490,-500.0,0.00041917,33]
[326726698,1715284293499,-500.0,0.00041917,33]
[326726699,1715284293509,-540.84,0.00041917,33]
[326726700,1715284293519,-500.0,0.00041917,33]
[326726701,1715284293528,-2144.61,0.00041917,33]
[326726702,1715284293538,-860.41,0.00041917,33]
[326726703,1715284293548,-500.0,0.00041917,33]
[326726704,1715284293558,-1751.55,0.00041917,33]
[326726705,1715284293567,-1207.84,0.00041917,33]
[326726706,1715284293577,-503.35966806,0.00041917,33]
[326726707,1715284293586,-684.16,0.00041917,33]
[326726708,1715284293596,-211.01248694,0.00041917,33]
[326726709,1715284293605,-500.0,0.00041917,33]
[326726710,1715284293614,-500.0,0.00041917,33]
[326726711,1715284293623,-1054.07,0.00041917,33]
[326726712,1715284293633,-576.56,0.00041917,33]
[326726713,1715284293642,-842.02,0.00041917,33]
[326726714,1715284293652,-500.0,0.00041917,33]
[326726715,1715284293661,-500.0,0.00041917,33]
[326726716,1715284293670,-2095.12,0.00041917,33]
[326726717,1715284293680,-500.0,0.00041917,33]
[326726718,1715284293691,-500.0,0.00041917,33]
[326726719,1715284293701,-500.0,0.00041917,33]
[326726720,1715284293711,-559.15,0.00041917,33]
[326726721,1715284293720,-793.28,0.00041917,33]
[326726722,1715284293729,-1297.79,0.00041917,33]
[326726723,1715284293738,-642.91,0.00041917,33]
[326726724,1715284293747,-269.49988885,0.00041917,33]
[326726725,1715284293756,-1901.75,0.00041917,33]
[326726726,1715284293765,-591.14,0.00041917,33]
[326726727,1715284293775,-2628.98,0.00041917,33]
[326726728,1715284293784,-500.0,0.00041917,33]
[326726729,1715284293793,-500.0,0.00041917,33]
[326726730,1715284293802,-500.0,0.00041917,33]
[326726731,1715284293811,-502.9808947,0.00041917,33]
[326726732,1715284293820,-500.0,0.00041917,33]
[326726733,1715284293829,-519.51767203,0.00041917,33]
[326726734,1715284293838,-2000.0,0.00041917,33]
[326726735,1715284293847,-904.69,0.00041917,33]
[326726736,1715284293856,-500.0,0.00041917,33]
[326726737,1715284293865,-500.0,0.00041917,33]
[326726738,1715284293874,-500.0,0.00041917,33]
[326726739,1715284293883,-500.0,0.00041917,33]
[326726740,1715284293892,-1639.76,0.00041917,33]
[326726741,1715284293902,-500.0,0.00041917,33]
[326726742,1715284293912,-938.7,0.00041917,33]
[326726743,1715284293926,-534.31765943,0.00041917,33]
[326726744,1715284293935,-1432.42,0.00041917,33]
[326726745,1715284293944,-500.0,0.00041917,33]
[326726746,1715284293955,-578.49733314,0.00041917,33]
[326726747,1715284293966,-500.0,0.00041917,33]
[326726748,1715284293975,-500.0,0.00041917,33]
[326726749,1715284293984,-500.0,0.00041917,33]
[326726750,1715284293996,-825.1,0.00041917,33]
[326726751,1715284294007,-500.0,0.00041917,33]
[326726752,1715284294018,-500.0,0.00041917,33]
[326726753,1715284294027,-500.0,0.00041917,33]
[326726754,1715284294036,-500.0,0.00041917,33]
[326726755,1715284294045,-733.8,0.00041917,33]
[326726756,1715284294054,-500.0,0.00041917,33]
[326726757,1715284294063,-2380.09,0.00041917,33]
[326726758,1715284294072,-3126.22,0.00041917,30]
[326726759,1715284294081,-523.81,0.00041917,33]
[326726760,1715284294090,-500.0,0.00041917,33]
[326726761,1715284294100,-500.0,0.00041917,33]
[326726762,1715284294108,-500.0,0.00041917,33]
[326726763,1715284294118,-686.09,0.00041917,33]
[326726764,1715284294127,-509.25749928,0.00041917,33]
[326726765,1715284294136,-620.29,0.00041917,33]
[326726766,1715284294145,-863.55,0.00041917,33]
[326726767,1715284294155,-500.0,0.00041917,33]
[326726768,1715284294164,-500.0,0.00041917,33]
[326726769,1715284294173,-947.5,0.00041917,33]
[326726770,1715284294182,-961.34,0.00041917,33]
[326726771,1715284294192,-873.21,0.00041917,33]
[326726772,1715284294201,-500.0,0.00041917,33]
[326726773,1715284294210,-500.0,0.00041917,33]
[326726774,1715284294219,-500.0,0.00041917,33]
[326726775,1715284294228,-151.0,0.00041917,14]
[326726776,1715284294237,-500.0,0.00041917,33]
[326726777,1715284294247,-500.0,0.00041917,33]
[326726778,1715284294256,-839.52,0.00041917,33]
[326726779,1715284294265,-500.0,0.00041917,2]
[326726780,1715284294275,-500.0,0.00041917,33]
[326726781,1715284294284,-529.88,0.00041917,33]
[326726782,1715284294293,-580.77,0.00041917,33]
[326726783,1715284294302,-500.0,0.00041917,33]
[326726784,1715284294312,-500.0,0.00041917,33]
[326726785,1715284294322,-1058.44,0.00041917,33]
[326726786,1715284294331,-1839.1,0.00041917,33]
[326726787,1715284294340,-500.0,0.00041917,33]
[326726788,1715284294350,-1338.17,0.00041917,33]
[326726789,1715284294359,-500.0,0.00041917,33]
[326726790,1715284294369,-500.0,0.00041917,33]
[326726791,1715284294379,-885.42,0.00041917,33]
[326726792,1715284294389,-1637.95,0.00041917,33]
[326726793,1715284294399,-500.0,0.00041917,33]
[326726794,1715284294409,-500.0,0.00041917,33]
[326726795,1715284294420,-252.47214832,0.00041917,33]
[326726796,1715284294430,-500.0,0.00041917,33]
[326726797,1715284294439,-500.0,0.00041917,33]
[326726798,1715284294449,-506.3193437,0.00041917,33]
[326726799,1715284294459,-1613.42,0.00041917,33]
[326726800,1715284294469,-3415.12,0.00041917,33]
[326726801,1715284294479,-500.0,0.00041917,33]
[326726802,1715284294488,-1630.14,0.00041917,33]
[326726803,1715284294498,-549.36,0.00041917,33]
[326726804,1715284294507,-500.0,0.00041917,33]
[326726805,1715284294516,-566.98,0.00041917,33]
[326726806,1715284294526,-500.0,0.00041917,33]
[326726807,1715284294535,-1472.57,0.00041917,33]
[326726808,1715284294544,-500.0,0.00041917,33]
[326726809,1715284294554,-507.96092136,0.00041917,33]
[326726810,1715284294563,-500.0,0.00041917,33]
[326726811,1715284294573,-500.0,0.00041917,33]
[326726812,1715284294582,-719.12,0.00041917,33]
[326726813,1715284294592,-500.0,0.00041917,33]
[326726814,1715284294601,-500.0,0.00041917,33]
[326726815,1715284294611,-1338.55,0.00041917,30]
[326726816,1715284294621,-2379.3,0.00041917,90]
[326726817,1715284294630,-500.0,0.00041917,33]
[326726818,1715284294640,-500.0,0.00041917,33]
[326726819,1715284294650,-500.0,0.00041917,33]
[326726820,1715284294659,-500.0,0.00041917,33]
[326726821,1715284294669,-500.0,0.00041917,33]
[326726822,1715284294679,-500.0,0.00041917,33]
[326726823,1715284294688,-1016.5,0.00041917,33]
[326726824,1715284294698,-500.0,0.00041917,33]
[326726825,1715284294707,-500.0,0.00041917,33]
[326726826,1715284294717,-1979.98,0.00041917,33]
[326726827,1715284294726,-500.0,0.00041917,33]
[326726828,1715284294735,-500.0,0.00041917,33]
[326726829,1715284294745,-745.75,0.00041917,33]
[326726830,1715284294754,-500.0,0.00041917,33]
[326726831,1715284294764,-500.0,0.00041917,33]
[326726832,1715284294773,-500.0,0.00041917,33]
[326726833,1715284294783,-500.0,0.00041917,33]
[326726834,1715284294792,-526.45,0.00041917,33]
[326726835,1715284294802,-882.56,0.00041917,33]
[326726836,1715284294811,-500.0,0.00041917,33]
[326726837,1715284294821,-574.77276461,0.00041917,33]
[326726838,1715284294830,-1256.94,0.00041917,33]
[326726839,1715284294840,-1000.0,0.00041917,33]
[326726840,1715284294850,-500.0,0.00041917,33]
[326726841,1715284294860,-500.0,0.00041917,33]
[326726842,1715284294869,-751.0,0.00041917,33]
[326726843,1715284294878,-508.71925221,0.00041917,33]
[326726844,1715284294887,-500.0,0.00041917,33]
[326726845,1715284294897,-500.0,0.00041917,33]
[326726846,1715284294908,-1209.71,0.00041917,33]
[326726847,1715284294917,-500.0,0.00041917,33]
[326726848,1715284294931,-696.11,0.00041917,33]
[326726849,1715284294940,-500.0,0.00041917,33]
[326726850,1715284294950,-500.0,0.00041917,33]
[326726851,1715284294959,-1233.7,0.00041917,33]
[326726852,1715284294969,-500.0,0.00041917,33]
[326726853,1715284294978,-1243.61,0.00041917,33]
[326726854,1715284294988,-1195.95,0.00041917,33]
[326726855,1715284294997,-500.0,0.00041917,33]
[326726856,1715284295009,-500.0,0.00041917,33]
[326726857,1715284295020,-500.0,0.00041917,33]
[326726858,1715284295030,-500.0,0.00041917,33]
[326726859,1715284295039,-566.25,0.00041917,33]
[326726860,1715284295049,-1169.68,0.00041917,33]
[326726861,1715284295058,-1260.04,0.00041917,33]
[326726862,1715284295067,-500.0,0.00041917,33]
[326726863,1715284295076,-500.0,0.00041917,33]
[326726864,1715284295085,-541.04,0.00041917,33]
[326726865,1715284295095,-500.0,0.00041917,33]
[326726866,1715284295104,-500.0,0.00041917,33]
[326726867,1715284295113,-2321.84,0.00041917,33]
[326726868,1715284295122,-1256.03,0.00041917,33]
[326726869,1715284295273,-1200.0,0.00041917,2]
[326726870,1715284295283,-546.87,0.00041917,33]
[326726871,1715284295292,-934.31,0.00041917,33]
[326726872,1715284295301,-500.0,0.00041917,33]
[326726873,1715284295311,-500.0,0.00041917,33]
[326726874,1715284295320,-500.0,0.00041917,33]
[326726875,1715284295330,-500.0,0.00041917,33]
[326726876,1715284295340,-500.0,0.00041917,33]
[326726877,1715284295349,-500.0,0.00041917,33]
[326726878,1715284295358,-1577.72,0.00041917,33]
[326726879,1715284295368,-1229.48,0.00041917,33]
[326726880,1715284295377,-359.03,0.00041917,33]
[326726881,1715284295387,-505.93,0.00041917,33]
[326726882,1715284295397,-659.81,0.00041917,33]
[326726883,1715284295408,-500.0,0.00041917,33]
[326726884,1715284295416,-671.85,0.00041917,33]
[326726885,1715284295426,-500.0,0.00041917,33]
[326726886,1715284295436,-500.0,0.00041917,33]
[326726887,1715284295446,-1454.91,0.00041917,33]
[326726888,1715284295455,-500.0,0.00041917,33]
[326726889,1715284295465,-719.25,0.00041917,33]
[326726890,1715284295475,-709.98,0.00041917,33]
[326726891,1715284295484,-500.0,0.00041917,33]
[326726892,1715284295494,-500.0,0.00041917,33]
[326726893,1715284295504,-1513.86,0.00041917,33]
[326726894,1715284295514,-370.30784975,0.00041917,33]
[326726895,1715284295524,-932.92,0.00041917,33]
[326726896,1715284295533,-500.0,0.00041917,33]
[326726897,1715284295542,-769.91,0.00041917,33]
[326726898,1715284295552,-1334.08,0.00041917,33]
[326726899,1715284295561,-505.35337455,0.00041917,33]
[326726900,1715284295570,-550.67,0.00041917,33]
[326726901,1715284295580,-500.0,0.00041917,33]
[326726902,1715284295589,-500.0,0.00041917,33]
[326726903,1715284295599,-505.23,0.00041917,33]
[326726904,1715284295608,-597.49,0.00041917,33]
[326726905,1715284295618,-404.38980021,0.00041917,33]
[326726906,1715284295628,-611.43,0.00041917,33]
[326726907,1715284295637,-500.0,0.00041917,33]
[326726908,1715284295647,-503.22026369,0.00041917,33]
[326726909,1715284295656,-532.24,0.00041917,33]
[326726910,1715284295666,-500.0,0.00041917,33]
[326726911,1715284295675,-823.13,0.00041917,33]
[326726912,1715284295685,-518.35716674,0.00041917,33]
[326726913,1715284295694,-1187.53,0.00041917,33]
[326726914,1715284295703,-500.0,0.00041917,33]
[326726915,1715284295713,-1247.18,0.00041917,33]
[326726916,1715284295723,-508.84,0.00041917,33]
[326726917,1715284295732,-507.01553733,0.00041917,33]
[326726918,1715284295742,-500.0,0.00041917,33]
[326726919,1715284295751,-1415.93,0.00041917,33]
[326726920,1715284295762,-500.0,0.00041917,33]
[326726921,1715284295772,-500.0,0.00041917,33]
[326726922,1715284295781,-500.0,0.00041917,33]
[326726923,1715284295790,-500.0,0.00041917,33]
[326726924,1715284295800,-1153.63,0.00041917,33]
[326726925,1715284295810,-500.0,0.00041917,33]
[326726926,1715284295819,-500.0,0.00041917,33]
[326726927,1715284295829,-865.47,0.00041917,33]
[326726928,1715284295839,-500.0,0.00041917,33]
[326726929,1715284295848,-500.0,0.00041917,33]
[326726930,1715284295857,-658.52,0.00041917,33]
[326726931,1715284295867,-500.0,0.00041917,33]
[326726932,1715284295877,-676.54,0.00041917,33]
[326726933,1715284295886,-500.0,0.00041917,33]
[326726934,1715284295896,-500.0,0.00041917,33]
[326726935,1715284295906,-1052.23,0.00041917,33]
[326726936,1715284295915,-500.0,0.00041917,33]
[326726937,1715284295929,-515.76693254,0.00041917,33]
[326726938,1715284295939,-500.0,0.00041917,33]
[326726939,1715284295948,-500.0,0.00041917,7]
[326726940,1715284295958,-794.94,0.00041917,33]
[326726941,1715284295969,-500.0,0.00041917,33]